{"text_format":"1","workbook":"xlsx","n_sheets":2,"sheets":["SHEET1","SHEET2"],"not_rendered":{"charts":0,"images":0,"macros":1,"external_links":0,"defined_names":2,"comments":0,"pivot_tables":0},"unopened":[],"bounds":{"document_bytes":16777216,"sheet_cells":100000,"rows_first":2000,"rows_last":500,"rows_between":2000,"halvings":0,"cell_chars":16384,"cell_head_chars":4096},"cells_cut":0,"cells_raw":0,"read":"whole","date_system":"1900"}

{"sheet":"SHEET1","index":0,"n_rows":40,"n_cols":45,"rows_kept":40,"cut":false,"hidden":false,"merged":[[2,44,3,44],[2,1,3,1],[2,2,3,2],[2,3,3,3],[2,4,2,8],[2,9,2,13],[2,14,2,18],[2,19,2,23],[2,24,2,28],[2,29,2,33],[2,34,2,38],[2,39,2,43]]}
[]
[]
[null,"ت","رقم الطالب","اسم الطالب","الأسبوع الأول",null,null,null,null,"الثاني",null,null,null,null,"الثالث",null,null,null,null,"الرابع",null,null,null,null,"الخامس",null,null,null,null,"السادس",null,null,null,null,"السابع",null,null,null,null,"الثامن",null,null,null,null,"عدد الغيابات"]
[null,null,null,null,"25 / 6","26 / 6","27 / 6","28 / 6","29 / 6","2 / 7","3 / 7","4 / 7","5 / 7","6 / 7","9 / 7","10 / 7","11 / 7","12 / 7","13 / 7","16 / 7","17 / 7","18 / 7","19 / 7","20 / 7","23 / 7","24 / 7","25 / 7","26 / 7","27 / 7","1 / 8","2 / 8","3 / 8","4 / 8","5 / 8","8 / 8","9 / 8","10 / 8","11 / 8","12 / 8","15 / 8","16 / 8","17 / 8","18 / 8","19 / 8"]
[null,1,1120,"Name1","غ"]
[null,2,1121,"Name2"]
[null,3,1122,"Name3",null,null,"غ"]
[null,4,1123,"Name4"]
[null,5,1124,"Name5"]
[null,6,1125,"Name6","غ",null,"غ"]
[null,7,1126,"Name7",null,null,"غ"]
[null,2,{"$f":"VLOOKUP(B12,#REF!,2,FALSE)","v":{"$error":"#REF!"}},{"$f":"VLOOKUP(B12,#REF!,3,FALSE)","v":{"$error":"#REF!"}},null,null,null,null,null,null,null,null,null,null,null,null,null,null,null,null,null,null,null,null,null,null,null,null,null,null,null,null,null,null,null,null,null,null,null,null,null,null,null,null,{"$f":"#REF!+#REF!","v":{"$error":"#REF!"}}]
[null,3,{"$f":"VLOOKUP(B13,#REF!,2,FALSE)","v":{"$error":"#REF!"}},{"$f":"VLOOKUP(B13,#REF!,3,FALSE)","v":{"$error":"#REF!"}},null,null,null,null,null,null,null,null,null,null,null,null,null,null,null,null,null,null,null,null,null,null,null,null,null,null,null,null,null,null,null,null,null,null,null,null,null,null,null,null,{"$f":"#REF!+#REF!","v":{"$error":"#REF!"}}]
[null,4,{"$f":"VLOOKUP(B14,#REF!,2,FALSE)","v":{"$error":"#REF!"}},{"$f":"VLOOKUP(B14,#REF!,3,FALSE)","v":{"$error":"#REF!"}},null,null,null,null,null,null,null,null,null,null,null,null,null,null,null,null,null,null,null,null,null,null,null,null,null,null,null,null,null,null,null,null,null,null,null,null,null,null,null,null,{"$f":"#REF!+#REF!","v":{"$error":"#REF!"}}]
[null,5,{"$f":"VLOOKUP(B15,#REF!,2,FALSE)","v":{"$error":"#REF!"}},{"$f":"VLOOKUP(B15,#REF!,3,FALSE)","v":{"$error":"#REF!"}},null,null,null,null,null,null,null,null,null,null,null,null,null,null,null,null,null,null,null,null,null,null,null,null,null,null,null,null,null,null,null,null,null,null,null,null,null,null,null,null,{"$f":"#REF!+#REF!","v":{"$error":"#REF!"}}]
[null,6,{"$f":"VLOOKUP(B16,#REF!,2,FALSE)","v":{"$error":"#REF!"}},{"$f":"VLOOKUP(B16,#REF!,3,FALSE)","v":{"$error":"#REF!"}},null,null,null,null,null,null,null,null,null,null,null,null,null,null,null,null,null,null,null,null,null,null,null,null,null,null,null,null,null,null,null,null,null,null,null,null,null,null,null,null,{"$f":"#REF!+#REF!","v":{"$error":"#REF!"}}]
[null,7,{"$f":"VLOOKUP(B17,#REF!,2,FALSE)","v":{"$error":"#REF!"}},{"$f":"VLOOKUP(B17,#REF!,3,FALSE)","v":{"$error":"#REF!"}},null,null,null,null,null,null,null,null,null,null,null,null,null,null,null,null,null,null,null,null,null,null,null,null,null,null,null,null,null,null,null,null,null,null,null,null,null,null,null,null,{"$f":"#REF!+#REF!","v":{"$error":"#REF!"}}]
[null,8,{"$f":"VLOOKUP(B18,#REF!,2,FALSE)","v":{"$error":"#REF!"}},{"$f":"VLOOKUP(B18,#REF!,3,FALSE)","v":{"$error":"#REF!"}},null,null,null,null,null,null,null,null,null,null,null,null,null,null,null,null,null,null,null,null,null,null,null,null,null,null,null,null,null,null,null,null,null,null,null,null,null,null,null,null,{"$f":"#REF!+#REF!","v":{"$error":"#REF!"}}]
[null,9,{"$f":"VLOOKUP(B19,#REF!,2,FALSE)","v":{"$error":"#REF!"}},{"$f":"VLOOKUP(B19,#REF!,3,FALSE)","v":{"$error":"#REF!"}},null,null,null,null,null,null,null,null,null,null,null,null,null,null,null,null,null,null,null,null,null,null,null,null,null,null,null,null,null,null,null,null,null,null,null,null,null,null,null,null,{"$f":"#REF!+#REF!","v":{"$error":"#REF!"}}]
[null,10,{"$f":"VLOOKUP(B20,#REF!,2,FALSE)","v":{"$error":"#REF!"}},{"$f":"VLOOKUP(B20,#REF!,3,FALSE)","v":{"$error":"#REF!"}},null,null,null,null,null,null,null,null,null,null,null,null,null,null,null,null,null,null,null,null,null,null,null,null,null,null,null,null,null,null,null,null,null,null,null,null,null,null,null,null,{"$f":"#REF!+#REF!","v":{"$error":"#REF!"}}]
[null,11,{"$f":"VLOOKUP(B21,#REF!,2,FALSE)","v":{"$error":"#REF!"}},{"$f":"VLOOKUP(B21,#REF!,3,FALSE)","v":{"$error":"#REF!"}},null,null,null,null,null,null,null,null,null,null,null,null,null,null,null,null,null,null,null,null,null,null,null,null,null,null,null,null,null,null,null,null,null,null,null,null,null,null,null,null,{"$f":"#REF!+#REF!","v":{"$error":"#REF!"}}]
[null,12,{"$f":"VLOOKUP(B22,#REF!,2,FALSE)","v":{"$error":"#REF!"}},{"$f":"VLOOKUP(B22,#REF!,3,FALSE)","v":{"$error":"#REF!"}},null,null,null,null,null,null,null,null,null,null,null,null,null,null,null,null,null,null,null,null,null,null,null,null,null,null,null,null,null,null,null,null,null,null,null,null,null,null,null,null,{"$f":"#REF!+#REF!","v":{"$error":"#REF!"}}]
[null,13,{"$f":"VLOOKUP(B23,#REF!,2,FALSE)","v":{"$error":"#REF!"}},{"$f":"VLOOKUP(B23,#REF!,3,FALSE)","v":{"$error":"#REF!"}},null,null,null,null,null,null,null,null,null,null,null,null,null,null,null,null,null,null,null,null,null,null,null,null,null,null,null,null,null,null,null,null,null,null,null,null,null,null,null,null,{"$f":"#REF!+#REF!","v":{"$error":"#REF!"}}]
[null,14,{"$f":"VLOOKUP(B24,#REF!,2,FALSE)","v":{"$error":"#REF!"}},{"$f":"VLOOKUP(B24,#REF!,3,FALSE)","v":{"$error":"#REF!"}},null,null,null,null,null,null,null,null,null,null,null,null,null,null,null,null,null,null,null,null,null,null,null,null,null,null,null,null,null,null,null,null,null,null,null,null,null,null,null,null,{"$f":"#REF!+#REF!","v":{"$error":"#REF!"}}]
[null,15,{"$f":"VLOOKUP(B25,#REF!,2,FALSE)","v":{"$error":"#REF!"}},{"$f":"VLOOKUP(B25,#REF!,3,FALSE)","v":{"$error":"#REF!"}},null,null,null,null,null,null,null,null,null,null,null,null,null,null,null,null,null,null,null,null,null,null,null,null,null,null,null,null,null,null,null,null,null,null,null,null,null,null,null,null,{"$f":"#REF!+#REF!","v":{"$error":"#REF!"}}]
[null,16,{"$f":"VLOOKUP(B26,#REF!,2,FALSE)","v":{"$error":"#REF!"}},{"$f":"VLOOKUP(B26,#REF!,3,FALSE)","v":{"$error":"#REF!"}},null,null,null,null,null,null,null,null,null,null,null,null,null,null,null,null,null,null,null,null,null,null,null,null,null,null,null,null,null,null,null,null,null,null,null,null,null,null,null,null,{"$f":"#REF!+#REF!","v":{"$error":"#REF!"}}]
[null,17,{"$f":"VLOOKUP(B27,#REF!,2,FALSE)","v":{"$error":"#REF!"}},{"$f":"VLOOKUP(B27,#REF!,3,FALSE)","v":{"$error":"#REF!"}},null,null,null,null,null,null,null,null,null,null,null,null,null,null,null,null,null,null,null,null,null,null,null,null,null,null,null,null,null,null,null,null,null,null,null,null,null,null,null,null,{"$f":"#REF!+#REF!","v":{"$error":"#REF!"}}]
[null,18,{"$f":"VLOOKUP(B28,#REF!,2,FALSE)","v":{"$error":"#REF!"}},{"$f":"VLOOKUP(B28,#REF!,3,FALSE)","v":{"$error":"#REF!"}},null,null,null,null,null,null,null,null,null,null,null,null,null,null,null,null,null,null,null,null,null,null,null,null,null,null,null,null,null,null,null,null,null,null,null,null,null,null,null,null,{"$f":"#REF!+#REF!","v":{"$error":"#REF!"}}]
[null,19,{"$f":"VLOOKUP(B29,#REF!,2,FALSE)","v":{"$error":"#REF!"}},{"$f":"VLOOKUP(B29,#REF!,3,FALSE)","v":{"$error":"#REF!"}},null,null,null,null,null,null,null,null,null,null,null,null,null,null,null,null,null,null,null,null,null,null,null,null,null,null,null,null,null,null,null,null,null,null,null,null,null,null,null,null,{"$f":"#REF!+#REF!","v":{"$error":"#REF!"}}]
[null,20,{"$f":"VLOOKUP(B30,#REF!,2,FALSE)","v":{"$error":"#REF!"}},{"$f":"VLOOKUP(B30,#REF!,3,FALSE)","v":{"$error":"#REF!"}},null,null,null,null,null,null,null,null,null,null,null,null,null,null,null,null,null,null,null,null,null,null,null,null,null,null,null,null,null,null,null,null,null,null,null,null,null,null,null,null,{"$f":"#REF!+#REF!","v":{"$error":"#REF!"}}]
[null,21,{"$f":"VLOOKUP(B31,#REF!,2,FALSE)","v":{"$error":"#REF!"}},{"$f":"VLOOKUP(B31,#REF!,3,FALSE)","v":{"$error":"#REF!"}},null,null,null,null,null,null,null,null,null,null,null,null,null,null,null,null,null,null,null,null,null,null,null,null,null,null,null,null,null,null,null,null,null,null,null,null,null,null,null,null,{"$f":"#REF!+#REF!","v":{"$error":"#REF!"}}]
[null,22,{"$f":"VLOOKUP(B32,#REF!,2,FALSE)","v":{"$error":"#REF!"}},{"$f":"VLOOKUP(B32,#REF!,3,FALSE)","v":{"$error":"#REF!"}},null,null,null,null,null,null,null,null,null,null,null,null,null,null,null,null,null,null,null,null,null,null,null,null,null,null,null,null,null,null,null,null,null,null,null,null,null,null,null,null,{"$f":"#REF!+#REF!","v":{"$error":"#REF!"}}]
[null,23,{"$f":"VLOOKUP(B33,#REF!,2,FALSE)","v":{"$error":"#REF!"}},{"$f":"VLOOKUP(B33,#REF!,3,FALSE)","v":{"$error":"#REF!"}},null,null,null,null,null,null,null,null,null,null,null,null,null,null,null,null,null,null,null,null,null,null,null,null,null,null,null,null,null,null,null,null,null,null,null,null,null,null,null,null,{"$f":"#REF!+#REF!","v":{"$error":"#REF!"}}]
[null,24,{"$f":"VLOOKUP(B34,#REF!,2,FALSE)","v":{"$error":"#REF!"}},{"$f":"VLOOKUP(B34,#REF!,3,FALSE)","v":{"$error":"#REF!"}},null,null,null,null,null,null,null,null,null,null,null,null,null,null,null,null,null,null,null,null,null,null,null,null,null,null,null,null,null,null,null,null,null,null,null,null,null,null,null,null,{"$f":"#REF!+#REF!","v":{"$error":"#REF!"}}]
[null,25,{"$f":"VLOOKUP(B35,#REF!,2,FALSE)","v":{"$error":"#REF!"}},{"$f":"VLOOKUP(B35,#REF!,3,FALSE)","v":{"$error":"#REF!"}},null,null,null,null,null,null,null,null,null,null,null,null,null,null,null,null,null,null,null,null,null,null,null,null,null,null,null,null,null,null,null,null,null,null,null,null,null,null,null,null,{"$f":"#REF!+#REF!","v":{"$error":"#REF!"}}]
[null,26,{"$f":"VLOOKUP(B36,#REF!,2,FALSE)","v":{"$error":"#REF!"}},{"$f":"VLOOKUP(B36,#REF!,3,FALSE)","v":{"$error":"#REF!"}},null,null,null,null,null,null,null,null,null,null,null,null,null,null,null,null,null,null,null,null,null,null,null,null,null,null,null,null,null,null,null,null,null,null,null,null,null,null,null,null,{"$f":"#REF!+#REF!","v":{"$error":"#REF!"}}]
[null,27,{"$f":"VLOOKUP(B37,#REF!,2,FALSE)","v":{"$error":"#REF!"}},{"$f":"VLOOKUP(B37,#REF!,3,FALSE)","v":{"$error":"#REF!"}},null,null,null,null,null,null,null,null,null,null,null,null,null,null,null,null,null,null,null,null,null,null,null,null,null,null,null,null,null,null,null,null,null,null,null,null,null,null,null,null,{"$f":"#REF!+#REF!","v":{"$error":"#REF!"}}]
[null,28,{"$f":"VLOOKUP(B38,#REF!,2,FALSE)","v":{"$error":"#REF!"}},{"$f":"VLOOKUP(B38,#REF!,3,FALSE)","v":{"$error":"#REF!"}},null,null,null,null,null,null,null,null,null,null,null,null,null,null,null,null,null,null,null,null,null,null,null,null,null,null,null,null,null,null,null,null,null,null,null,null,null,null,null,null,{"$f":"#REF!+#REF!","v":{"$error":"#REF!"}}]
[null,29,{"$f":"VLOOKUP(B39,#REF!,2,FALSE)","v":{"$error":"#REF!"}},{"$f":"VLOOKUP(B39,#REF!,3,FALSE)","v":{"$error":"#REF!"}},null,null,null,null,null,null,null,null,null,null,null,null,null,null,null,null,null,null,null,null,null,null,null,null,null,null,null,null,null,null,null,null,null,null,null,null,null,null,null,null,{"$f":"#REF!+#REF!","v":{"$error":"#REF!"}}]
[null,30,{"$f":"VLOOKUP(B40,#REF!,2,FALSE)","v":{"$error":"#REF!"}},{"$f":"VLOOKUP(B40,#REF!,3,FALSE)","v":{"$error":"#REF!"}},null,null,null,null,null,null,null,null,null,null,null,null,null,null,null,null,null,null,null,null,null,null,null,null,null,null,null,null,null,null,null,null,null,null,null,null,null,null,null,null,{"$f":"#REF!+#REF!","v":{"$error":"#REF!"}}]

{"sheet":"SHEET2","index":1,"n_rows":40,"n_cols":27,"rows_kept":40,"cut":false,"hidden":false,"merged":[]}
[null,null,null,null,null,null,null,null,null,null,null,null,null,null,null,null,null,null,null,null,null,null,null,null,null,null,"25 / 6"]
["الأسبوع الثاني",null,null,"تاريخ اليوم","27 / 6",null,null,null,null,null,null,null,null,null,null,null,null,null,null,null,null,null,null,null,null,null,"26 / 6"]
[null,null,null,null,null,null,null,"choose here",null,null,null,null,null,null,null,null,null,null,null,null,null,null,null,null,null,null,"27 / 6"]
["Studiante Name",null,null,null,null,null,null,null,null,null,null,null,null,null,null,null,null,null,null,null,null,null,null,null,null,null,"28 / 6"]
[{"$f":"IF(B5=\"\",\"\",MAX($A$4:A4)+1)","v":1},1120,{"$f":"IF(OR(B5=\"\",COUNTIF(SHEET1!$C$5:$C$100,B5=0)),\"\",INDEX(SHEET1!$D$5:$D$100,MATCH(B5,SHEET1!$C$5:$C$100,0)))","v":"Name1"},null,null,null,null,null,null,null,null,null,null,null,null,null,null,null,null,null,null,null,null,null,null,null,"29 / 6"]
[{"$f":"IF(B6=\"\",\"\",MAX($A$4:A5)+1)","v":2},1124,{"$f":"IF(OR(B6=\"\",COUNTIF(SHEET1!$C$5:$C$100,B6=0)),\"\",INDEX(SHEET1!$D$5:$D$100,MATCH(B6,SHEET1!$C$5:$C$100,0)))","v":"Name5"},null,null,null,null,null,null,null,null,null,null,null,null,null,null,null,null,null,null,null,null,null,null,null,"2 / 7"]
[{"$f":"IF(B7=\"\",\"\",MAX($A$4:A6)+1)","v":3},1122,{"$f":"IF(OR(B7=\"\",COUNTIF(SHEET1!$C$5:$C$100,B7=0)),\"\",INDEX(SHEET1!$D$5:$D$100,MATCH(B7,SHEET1!$C$5:$C$100,0)))","v":"Name3"},"غ",null,null,null,null,null,null,null,null,null,null,null,null,null,null,null,null,null,null,null,null,null,null,"3 / 7"]
[{"$f":"IF(B8=\"\",\"\",MAX($A$4:A7)+1)","v":4},1123,{"$f":"IF(OR(B8=\"\",COUNTIF(SHEET1!$C$5:$C$100,B8=0)),\"\",INDEX(SHEET1!$D$5:$D$100,MATCH(B8,SHEET1!$C$5:$C$100,0)))","v":"Name4"},null,"`",null,null,null,null,null,null,null,null,null,null,null,null,null,null,null,null,null,null,null,null,null,"4 / 7"]
[{"$f":"IF(B9=\"\",\"\",MAX($A$4:A8)+1)","v":5},1124,{"$f":"IF(OR(B9=\"\",COUNTIF(SHEET1!$C$5:$C$100,B9=0)),\"\",INDEX(SHEET1!$D$5:$D$100,MATCH(B9,SHEET1!$C$5:$C$100,0)))","v":"Name5"},null,null,null,null,null,null,null,null,null,null,null,null,null,null,null,null,null,null,null,null,null,null,null,"5 / 7"]
[{"$f":"IF(B10=\"\",\"\",MAX($A$4:A9)+1)","v":6},1125,{"$f":"IF(OR(B10=\"\",COUNTIF(SHEET1!$C$5:$C$100,B10=0)),\"\",INDEX(SHEET1!$D$5:$D$100,MATCH(B10,SHEET1!$C$5:$C$100,0)))","v":"Name6"},"غ",null,null,null,null,null,null,null,null,null,null,null,null,null,null,null,null,null,null,null,null,null,null,"6 / 7"]
[{"$f":"IF(B11=\"\",\"\",MAX($A$4:A10)+1)","v":7},1126,{"$f":"IF(OR(B11=\"\",COUNTIF(SHEET1!$C$5:$C$100,B11=0)),\"\",INDEX(SHEET1!$D$5:$D$100,MATCH(B11,SHEET1!$C$5:$C$100,0)))","v":"Name7"},"غ",null,null,null,null,null,null,null,null,null,null,null,null,null,null,null,null,null,null,null,null,null,null,"9 / 7"]
[{"$f":"IF(B12=\"\",\"\",MAX($A$4:A11)+1)","v":""},null,{"$f":"IF(OR(B12=\"\",COUNTIF(SHEET1!$C$5:$C$100,B12=0)),\"\",INDEX(SHEET1!$D$5:$D$100,MATCH(B12,SHEET1!$C$5:$C$100,0)))","v":""},null,null,null,null,null,null,null,null,null,null,null,null,null,null,null,null,null,null,null,null,null,null,null,"10 / 7"]
[{"$f":"IF(B13=\"\",\"\",MAX($A$4:A12)+1)","v":""},null,{"$f":"IF(OR(B13=\"\",COUNTIF(SHEET1!$C$5:$C$100,B13=0)),\"\",INDEX(SHEET1!$D$5:$D$100,MATCH(B13,SHEET1!$C$5:$C$100,0)))","v":""},null,null,null,null,null,null,null,null,null,null,null,null,null,null,null,null,null,null,null,null,null,null,null,"11 / 7"]
[{"$f":"IF(B14=\"\",\"\",MAX($A$4:A13)+1)","v":""},null,{"$f":"IF(OR(B14=\"\",COUNTIF(SHEET1!$C$5:$C$100,B14=0)),\"\",INDEX(SHEET1!$D$5:$D$100,MATCH(B14,SHEET1!$C$5:$C$100,0)))","v":""},null,null,null,null,null,null,null,null,null,null,null,null,null,null,null,null,null,null,null,null,null,null,null,"12 / 7"]
[{"$f":"IF(B15=\"\",\"\",MAX($A$4:A14)+1)","v":""},null,{"$f":"IF(OR(B15=\"\",COUNTIF(SHEET1!$C$5:$C$100,B15=0)),\"\",INDEX(SHEET1!$D$5:$D$100,MATCH(B15,SHEET1!$C$5:$C$100,0)))","v":""},null,null,null,null,null,null,null,null,null,null,null,null,null,null,null,null,null,null,null,null,null,null,null,"13 / 7"]
[{"$f":"IF(B16=\"\",\"\",MAX($A$4:A15)+1)","v":""},null,{"$f":"IF(OR(B16=\"\",COUNTIF(SHEET1!$C$5:$C$100,B16=0)),\"\",INDEX(SHEET1!$D$5:$D$100,MATCH(B16,SHEET1!$C$5:$C$100,0)))","v":""},null,null,null,null,null,null,null,null,null,null,null,null,null,null,null,null,null,null,null,null,null,null,null,"16 / 7"]
[{"$f":"IF(B17=\"\",\"\",MAX($A$4:A16)+1)","v":""},null,{"$f":"IF(OR(B17=\"\",COUNTIF(SHEET1!$C$5:$C$100,B17=0)),\"\",INDEX(SHEET1!$D$5:$D$100,MATCH(B17,SHEET1!$C$5:$C$100,0)))","v":""},null,null,null,null,null,null,null,null,null,null,null,null,null,null,null,null,null,null,null,null,null,null,null,"17 / 7"]
[{"$f":"IF(B18=\"\",\"\",MAX($A$4:A17)+1)","v":""},null,{"$f":"IF(OR(B18=\"\",COUNTIF(SHEET1!$C$5:$C$100,B18=0)),\"\",INDEX(SHEET1!$D$5:$D$100,MATCH(B18,SHEET1!$C$5:$C$100,0)))","v":""},null,null,null,null,null,null,null,null,null,null,null,null,null,null,null,null,null,null,null,null,null,null,null,"18 / 7"]
[{"$f":"IF(B19=\"\",\"\",MAX($A$4:A18)+1)","v":""},null,{"$f":"IF(OR(B19=\"\",COUNTIF(SHEET1!$C$5:$C$100,B19=0)),\"\",INDEX(SHEET1!$D$5:$D$100,MATCH(B19,SHEET1!$C$5:$C$100,0)))","v":""},null,null,null,null,null,null,null,null,null,null,null,null,null,null,null,null,null,null,null,null,null,null,null,"19 / 7"]
[{"$f":"IF(B20=\"\",\"\",MAX($A$4:A19)+1)","v":""},null,{"$f":"IF(OR(B20=\"\",COUNTIF(SHEET1!$C$5:$C$100,B20=0)),\"\",INDEX(SHEET1!$D$5:$D$100,MATCH(B20,SHEET1!$C$5:$C$100,0)))","v":""},null,null,null,null,null,null,null,null,null,null,null,null,null,null,null,null,null,null,null,null,null,null,null,"20 / 7"]
[{"$f":"IF(B21=\"\",\"\",MAX($A$4:A20)+1)","v":""},null,{"$f":"IF(OR(B21=\"\",COUNTIF(SHEET1!$C$5:$C$100,B21=0)),\"\",INDEX(SHEET1!$D$5:$D$100,MATCH(B21,SHEET1!$C$5:$C$100,0)))","v":""},null,null,null,null,null,null,null,null,null,null,null,null,null,null,null,null,null,null,null,null,null,null,null,"23 / 7"]
[{"$f":"IF(B22=\"\",\"\",MAX($A$4:A21)+1)","v":""},null,{"$f":"IF(OR(B22=\"\",COUNTIF(SHEET1!$C$5:$C$100,B22=0)),\"\",INDEX(SHEET1!$D$5:$D$100,MATCH(B22,SHEET1!$C$5:$C$100,0)))","v":""},null,null,null,null,null,null,null,null,null,null,null,null,null,null,null,null,null,null,null,null,null,null,null,"24 / 7"]
[{"$f":"IF(B23=\"\",\"\",MAX($A$4:A22)+1)","v":""},null,{"$f":"IF(OR(B23=\"\",COUNTIF(SHEET1!$C$5:$C$100,B23=0)),\"\",INDEX(SHEET1!$D$5:$D$100,MATCH(B23,SHEET1!$C$5:$C$100,0)))","v":""},null,null,null,null,null,null,null,null,null,null,null,null,null,null,null,null,null,null,null,null,null,null,null,"25 / 7"]
[{"$f":"IF(B24=\"\",\"\",MAX($A$4:A23)+1)","v":""},null,{"$f":"IF(OR(B24=\"\",COUNTIF(SHEET1!$C$5:$C$100,B24=0)),\"\",INDEX(SHEET1!$D$5:$D$100,MATCH(B24,SHEET1!$C$5:$C$100,0)))","v":""},null,null,null,null,null,null,null,null,null,null,null,null,null,null,null,null,null,null,null,null,null,null,null,"26 / 7"]
[{"$f":"IF(B25=\"\",\"\",MAX($A$4:A24)+1)","v":""},null,{"$f":"IF(OR(B25=\"\",COUNTIF(SHEET1!$C$5:$C$100,B25=0)),\"\",INDEX(SHEET1!$D$5:$D$100,MATCH(B25,SHEET1!$C$5:$C$100,0)))","v":""},null,null,null,null,null,null,null,null,null,null,null,null,null,null,null,null,null,null,null,null,null,null,null,"27 / 7"]
[{"$f":"IF(B26=\"\",\"\",MAX($A$4:A25)+1)","v":""},null,{"$f":"IF(OR(B26=\"\",COUNTIF(SHEET1!$C$5:$C$100,B26=0)),\"\",INDEX(SHEET1!$D$5:$D$100,MATCH(B26,SHEET1!$C$5:$C$100,0)))","v":""},null,null,null,null,null,null,null,null,null,null,null,null,null,null,null,null,null,null,null,null,null,null,null,"1 / 8"]
[{"$f":"IF(B27=\"\",\"\",MAX($A$4:A26)+1)","v":""},null,{"$f":"IF(OR(B27=\"\",COUNTIF(SHEET1!$C$5:$C$100,B27=0)),\"\",INDEX(SHEET1!$D$5:$D$100,MATCH(B27,SHEET1!$C$5:$C$100,0)))","v":""},null,null,null,null,null,null,null,null,null,null,null,null,null,null,null,null,null,null,null,null,null,null,null,"2 / 8"]
[{"$f":"IF(B28=\"\",\"\",MAX($A$4:A27)+1)","v":""},null,{"$f":"IF(OR(B28=\"\",COUNTIF(SHEET1!$C$5:$C$100,B28=0)),\"\",INDEX(SHEET1!$D$5:$D$100,MATCH(B28,SHEET1!$C$5:$C$100,0)))","v":""},null,null,null,null,null,null,null,null,null,null,null,null,null,null,null,null,null,null,null,null,null,null,null,"3 / 8"]
[{"$f":"IF(B29=\"\",\"\",MAX($A$4:A28)+1)","v":""},null,{"$f":"IF(OR(B29=\"\",COUNTIF(SHEET1!$C$5:$C$100,B29=0)),\"\",INDEX(SHEET1!$D$5:$D$100,MATCH(B29,SHEET1!$C$5:$C$100,0)))","v":""},null,null,null,null,null,null,null,null,null,null,null,null,null,null,null,null,null,null,null,null,null,null,null,"4 / 8"]
[{"$f":"IF(B30=\"\",\"\",MAX($A$4:A29)+1)","v":""},null,{"$f":"IF(OR(B30=\"\",COUNTIF(SHEET1!$C$5:$C$100,B30=0)),\"\",INDEX(SHEET1!$D$5:$D$100,MATCH(B30,SHEET1!$C$5:$C$100,0)))","v":""},null,null,null,null,null,null,null,null,null,null,null,null,null,null,null,null,null,null,null,null,null,null,null,"5 / 8"]
[{"$f":"IF(B31=\"\",\"\",MAX($A$4:A30)+1)","v":""},null,{"$f":"IF(OR(B31=\"\",COUNTIF(SHEET1!$C$5:$C$100,B31=0)),\"\",INDEX(SHEET1!$D$5:$D$100,MATCH(B31,SHEET1!$C$5:$C$100,0)))","v":""},null,null,null,null,null,null,null,null,null,null,null,null,null,null,null,null,null,null,null,null,null,null,null,"8 / 8"]
[{"$f":"IF(B32=\"\",\"\",MAX($A$4:A31)+1)","v":""},null,{"$f":"IF(OR(B32=\"\",COUNTIF(SHEET1!$C$5:$C$100,B32=0)),\"\",INDEX(SHEET1!$D$5:$D$100,MATCH(B32,SHEET1!$C$5:$C$100,0)))","v":""},null,null,null,null,null,null,null,null,null,null,null,null,null,null,null,null,null,null,null,null,null,null,null,"9 / 8"]
[{"$f":"IF(B33=\"\",\"\",MAX($A$4:A32)+1)","v":""},null,{"$f":"IF(OR(B33=\"\",COUNTIF(SHEET1!$C$5:$C$100,B33=0)),\"\",INDEX(SHEET1!$D$5:$D$100,MATCH(B33,SHEET1!$C$5:$C$100,0)))","v":""},null,null,null,null,null,null,null,null,null,null,null,null,null,null,null,null,null,null,null,null,null,null,null,"10 / 8"]
[{"$f":"IF(B34=\"\",\"\",MAX($A$4:A33)+1)","v":""},null,{"$f":"IF(OR(B34=\"\",COUNTIF(SHEET1!$C$5:$C$100,B34=0)),\"\",INDEX(SHEET1!$D$5:$D$100,MATCH(B34,SHEET1!$C$5:$C$100,0)))","v":""},null,null,null,null,null,null,null,null,null,null,null,null,null,null,null,null,null,null,null,null,null,null,null,"11 / 8"]
[{"$f":"IF(B35=\"\",\"\",MAX($A$4:A34)+1)","v":""},null,{"$f":"IF(OR(B35=\"\",COUNTIF(SHEET1!$C$5:$C$100,B35=0)),\"\",INDEX(SHEET1!$D$5:$D$100,MATCH(B35,SHEET1!$C$5:$C$100,0)))","v":""},null,null,null,null,null,null,null,null,null,null,null,null,null,null,null,null,null,null,null,null,null,null,null,"12 / 8"]
[{"$f":"IF(B36=\"\",\"\",MAX($A$4:A35)+1)","v":""},null,{"$f":"IF(OR(B36=\"\",COUNTIF(SHEET1!$C$5:$C$100,B36=0)),\"\",INDEX(SHEET1!$D$5:$D$100,MATCH(B36,SHEET1!$C$5:$C$100,0)))","v":""},null,null,null,null,null,null,null,null,null,null,null,null,null,null,null,null,null,null,null,null,null,null,null,"15 / 8"]
[{"$f":"IF(B37=\"\",\"\",MAX($A$4:A36)+1)","v":""},null,{"$f":"IF(OR(B37=\"\",COUNTIF(SHEET1!$C$5:$C$100,B37=0)),\"\",INDEX(SHEET1!$D$5:$D$100,MATCH(B37,SHEET1!$C$5:$C$100,0)))","v":""},null,null,null,null,null,null,null,null,null,null,null,null,null,null,null,null,null,null,null,null,null,null,null,"16 / 8"]
[{"$f":"IF(B38=\"\",\"\",MAX($A$4:A37)+1)","v":""},null,{"$f":"IF(OR(B38=\"\",COUNTIF(SHEET1!$C$5:$C$100,B38=0)),\"\",INDEX(SHEET1!$D$5:$D$100,MATCH(B38,SHEET1!$C$5:$C$100,0)))","v":""},null,null,null,null,null,null,null,null,null,null,null,null,null,null,null,null,null,null,null,null,null,null,null,"17 / 8"]
[{"$f":"IF(B39=\"\",\"\",MAX($A$4:A38)+1)","v":""},null,{"$f":"IF(OR(B39=\"\",COUNTIF(SHEET1!$C$5:$C$100,B39=0)),\"\",INDEX(SHEET1!$D$5:$D$100,MATCH(B39,SHEET1!$C$5:$C$100,0)))","v":""},null,null,null,null,null,null,null,null,null,null,null,null,null,null,null,null,null,null,null,null,null,null,null,"18 / 8"]
[{"$f":"IF(B40=\"\",\"\",MAX($A$4:A39)+1)","v":""},null,{"$f":"IF(OR(B40=\"\",COUNTIF(SHEET1!$C$5:$C$100,B40=0)),\"\",INDEX(SHEET1!$D$5:$D$100,MATCH(B40,SHEET1!$C$5:$C$100,0)))","v":""},null,null,null,null,null,null,null,null,null,null,null,null,null,null,null,null,null,null,null,null,null,null,null,"19 / 8"]